Cogmind - Beta 17 @@@ ROGUE MODE // 2026.08.09 @ 00:22:35 Player: OBLIQUE Result: Destroyed by Shrapnel Trap Performance ------------- Evolutions (0) 0 Regions Visited (3) 600 Robots Destroyed (33) 165 Value Destroyed (916) 916 Prototype IDs (18) 360 Alien Tech Used (0) 0 Bonus (0) 0 TOTAL SCORE: 2041 Bonus ------- None Cogmind --------- Core Integrity 0/250 Matter 300/300 Energy 170/800 System Corruption 2% Temperature Cool (2) Movement Walking (120) Location -10/Subcaves Parts ------- > --- POWER (1) -------- Hybrid Deuterium Engine (fused) > --- PROPULSION (2) --- Carbon-fiber Leg (fused) Improved Carbon-fiber Leg (fused) > --- UTILITY (2) ------ Small Storage Unit Self-contained Transmogrifier > --- WEAPON (2) ------- Riot Gun Subdweller Beam Cannon > --- INVENTORY (8) ---- Cargo Legs Subdweller Monowheel Heat Sink Heat Sink High-capacity Battery (250) Scrap Shield Peak State ------------ > --- POWER ------------ Improved Deuterium Engine > --- PROPULSION ------- Spiked Treads Improved Carbon-fiber Leg > --- UTILITY ---------- Small Storage Unit Self-contained Transmogrifier > --- WEAPON ----------- Beam Rifle Heavy Particle Gun > --- INVENTORY -------- Cargo Legs Subdweller Monowheel Heat Sink Heat Sink High-capacity Battery Scrap Shield [Rating: 28] Favorites ----------- Power Ion Engine Engine Ion Engine Power Core Light Nuclear Core Propulsion Spiked Treads Treads Spiked Treads Leg Aluminum Leg Wheel Subdweller Monowheel Utility Small Storage Unit Device Self-contained Transmogrifier Storage Small Storage Unit Weapon Beam Rifle Energy Gun Beam Rifle Energy Cannon Beam Cannon Ballistic Gun Assault Rifle Slashing Weapon Makeshift Sword Build | -11 -10 -10 -10 ------- Run | Yrd Mat Min Sub Slots Evolved . | . . . . Power . | . . . . Propulsion . | . . . . Utility . | . . . . Weapon . | . . . . Parts Attached 27 | 7 4 5 11 Power 4 | 1 2 . 1 Engine 3 | 1 2 . . Core 1 | . . . 1 Reactor . | . . . . Propulsion 7 | 2 . 2 3 Treads 3 | 2 . . 1 Leg 2 | . . 2 . Wheel 2 | . . . 2 Hover . | . . . . Flight . | . . . . Utility 4 | 1 1 1 1 Device 3 | . 1 1 1 Storage 1 | 1 . . . Processor . | . . . . Hackware . | . . . . Protection . | . . . . Artifact . | . . . . Weapon 12 | 3 1 2 6 Energy Gun 3 | 1 . . 2 Energy Cannon 4 | . 1 2 1 Ballistic Gun 4 | 2 . . 2 Ballistic Cannon . | . . . . Launcher . | . . . . Special Weapon . | . . . . Impact Weapon . | . . . . Slashing Weapon 1 | . . . 1 Piercing Weapon . | . . . . Special Melee Weapon . | . . . . Unidentified Prototypes 1 | . . . 1 Parts Lost 5 | . . 1 4 Power 1 | . . . 1 Propulsion 1 | . . . 1 Utility . | . . . . Weapon 3 | . . 1 2 Highest Loss Streak 2 | . . 1 2 To Critical Strikes . | . . . . Average Backups 6 | 1 7 7 6 Power . | . 1 2 . Propulsion 1 | . . . 2 Utility 3 | . 1 2 3 Weapon 1 | . 3 2 . Tool/Special . | . . . . Unused Backups 10 | . 1 1 8 Power 3 | . 1 1 1 Propulsion 3 | . . . 3 Utility 3 | . . . 3 Weapon 1 | . . . 1 Tool/Special . | . . . . Average Slot Usage (%) 99 | . 97 100 99 Engine 11 | . 14 14 10 Core 2 | . . . 3 Treads 13 | . 28 14 9 Leg 10 | . . 14 13 Wheel 3 | . . . 4 Device 13 | . 12 14 13 Storage 14 | . 14 14 14 Energy Gun 12 | . . . 15 Energy Cannon 10 | . 12 26 8 Ballistic Gun 4 | . 15 2 2 Slashing Weapon 1 | . . . 1 Peak Build Rating 28 | 6 8 10 28 Average Rating 17 | 4 7 9 21 On Entrance 6 | . 6 8 10 Avg Prop Armor Cover (%) 9 | . . . 9 Naked Turns . | . . . . Heaviest Build 26 | 11 16 17 26 Greatest Support 40 | 40 40 40 33 Greatest Overweight (x) 1 | . . . 1 Average Overweight (x) . | . . . . Largest Inventory Capacity 8 | 8 8 8 8 Average Capacity 7 | 7 8 8 8 Most Carried 8 | 2 8 8 8 Average Carried 7 | 1 7 7 7 Final Capacity 8 | 8 8 8 8 Final Carried 8 | 2 8 8 8 Transmogrified Parts 15 | . . . 15 Integrity Recovered 191 | . . . 191 Class Distribution -------------------- 70% | Mutant 29% | Scavenger-Mutant Dominant Class ---------------- Mutant | -10/Materials Scavenger-Mutant | -10/Mines Mutant | -10/Subcaves Resources | -11 -10 -10 -10 ----------- Run | Yrd Mat Min Sub Matter Collected 624 | 203 173 71 177 Remotely . | . . . . Salvage Created 1081 | . 426 130 525 Parts 72 | . 26 11 35 Haulers Intercepted . | . . . . Recyclers Shooed 1 | . 1 . . Parts Field Recycled . | . . . . Retrieved Matter . | . . . . Parts Self-Destructed 17 | . . . 17 Prevented . | . . . . Parts Restored . | . . . . Kills | -11 -10 -10 -10 ------- Run | Yrd Mat Min Sub Combat Hostiles Destroyed 29 | . 11 5 13 Guns 10 | . 4 . 6 Cannons 19 | . 7 5 7 Classes Destroyed 6 | . 4 . 2 Worker 1 | . 1 . . Turret 2 | . . . 2 Watcher 1 | . 1 . . Swarmer 10 | . 3 3 4 Grunt 10 | . 8 2 . Subdweller 9 | . . . 9 Best Kill Streak 6 | . 3 3 6 Combat Bots Only 4 | . 3 3 4 Max Kills in Single Turn 1 | . 1 1 1 Gunslinging . | . . . . Exploded . | . . . . Melee . | . . . . Uniques/NPCs Destroyed . | . . . . Combat | -11 -10 -10 -10 -------- Run | Yrd Mat Min Sub Hostile Shots Fired 174 | . 35 29 110 Missed 52 | . 10 3 39 Hits 122 | . 25 26 71 Projectile 122 | . 25 26 71 Critical Strikes 2 | . 1 . 1 Damage Taken 1647 | . 286 313 1048 Core 262 | . 36 17 209 Absorbed by Shields . | . . . . Core Remaining (%) 100 | 100 . . . Volleys Fired 102 | . 26 13 63 Largest 2 | . 2 2 2 Hottest 130 | . 80 120 130 Shots Fired 208 | . 53 26 129 Gun 98 | . 26 6 66 Cannon 110 | . 27 20 63 Launcher . | . . . . Special . | . . . . Kinetic 41 | . 26 6 9 Thermal 164 | . 27 20 117 Explosive . | . . . . Electromagnetic 3 | . . . 3 Robot Hit Streak 17 | . 9 6 17 Robot Miss Streak 3 | . 2 3 2 Penetration Max . | . . . . Secondary Targets 1 | . . . 1 Max Gunslinging Chain 1 | . . . 1 Shots Hit Robots 123 | . 34 14 75 Core Hits 47 | . 17 6 24 Critical Kills 1 | . 1 . . Critical Parts Destroyed . | . . . . Critical Strikes 2 | . 1 . 1 Burn 1 | . . . 1 Meltdown 1 | . 1 . . Melee Attacks 6 | . . . 6 Impact . | . . . . Slashing 6 | . . . 6 Piercing . | . . . . Sneak Attacks . | . . . . Combat Hostiles . | . . . . Follow-up Attacks . | . . . . Damage Inflicted 2088 | . 552 239 1297 Guns 870 | . 184 37 649 Cannons 1204 | . 354 202 648 Explosions . | . . . . Melee . | . . . . Ramming 14 | . 14 . . Kinetic 307 | . 184 37 86 Thermal 1744 | . 354 202 1188 Explosive . | . . . . Electromagnetic 23 | . . . 23 Impact . | . . . . Slashing . | . . . . Piercing . | . . . . Highest Corruption 2 | . 2 2 2 Average Corruption 2 | . 2 2 2 Corruption Purged . | . . . . Corruption Blocked . | . . . . Effects 31 | . 2 1 28 Message Errors 9 | . . . 9 Matter Fused 7 | . 1 . 6 Heat Flow Errors 3 | . . . 3 Energy Discharges 2 | . . . 2 Data Loss (minor) 4 | . . . 4 Data Loss (major) 2 | . . 1 1 Misfires 4 | . 1 . 3 Overload Shots . | . . . . Overflow Damage . | . . . . Projectiles . | . . . . Explosions . | . . . . Melee . | . . . . Knockbacks . | . . . . Impact . | . . . . Kinetic . | . . . . Secondary . | . . . . Self-Inflicted Damage . | . . . . Shots . | . . . . Rammed 7 | . 7 . . Targets Rammed 7 | . 7 . . Kicked . | . . . . Crushed . | . . . . Highest Temperature 189 | . 111 124 189 Average Temperature 32 | . 29 37 29 Received Heat Transfer 390 | . 138 132 120 Siege Activations . | . . . . Martial Activations . | . . . . Shielding Activations . | . . . . Robots Disrupted . | . . . . Combat Hostiles . | . . . . Robots Corrupted . | . . . . Combat Hostiles . | . . . . Parts Fried . | . . . . Impact Corruptions . | . . . . Robots Melted 1 | . 1 . . Combat Hostiles . | . . . . Parts Melted 3 | . 1 1 1 Heat Transferred 3811 | . 740 407 2664 Parts Sabotaged . | . . . . Parts Stolen . | . . . . Parts Stripped . | . . . . Power Chain Reactions . | . . . . Alert | -11 -10 -10 -10 ------- Run | Yrd Mat Min Sub Maximum Alert Level . | . . . . Low Security (%) 100 | 100 100 100 . Level 1 . | . . . . Level 2 . | . . . . Level 3 . | . . . . Level 4 . | . . . . Level 5 . | . . . . High Security . | . . . . Max Security . | . . . . Peak Influence 88 | . 88 72 . Initial 22 | . . 22 . Average 31 | . 33 39 . Influence Increases 598 | . 298 120 180 Destroy 0b10 Robot/C 440 | . 220 100 120 Destroy 0b10 Robot/NC 10 | . 10 . . Destroy Leader 72 | . 52 20 . Successful Hack 15 | . 15 . . Destroy Structure 1 | . 1 . . Lose Combat Pursuer 60 | . . . 60 Influence Decreases 598 | . 240 106 252 Entered New Map 74 | . . 36 38 Time Decay 484 | . 240 60 184 Lost Part 40 | . . 10 30 Squads Dispatched 2 | . 2 . . Investigation 1 | . 1 . . Extermination . | . . . . Reinforcement 1 | . 1 . . Assault . | . . . . Garrison . | . . . . Intercept . | . . . . Searches Triggered . | . . . . Construction Impeded . | . . . . Haulers Reinforced . | . . . . Active Scanning Responses . | . . . . Cargo Convoy Interrupts . | . . . . Stealth | -11 -10 -10 -10 --------- Run | Yrd Mat Min Sub Distress Signals 3 | . 3 . . Communications Jammed . | . . . . Distress Signals . | . . . . Times Spotted 37 | . 16 5 16 Peak Tracking Total 6 | . 4 3 6 Tactical Retreats 2 | . . . 2 Traps | -11 -10 -10 -10 ------- Run | Yrd Mat Min Sub Traps Triggered 3 | . 2 . 1 Indirectly . | . . . . Trap Hack Attempts . | . . . . Triggered . | . . . . Disarmed . | . . . . Reprogrammed . | . . . . Reused . | . . . . Traps Extracted . | . . . . Installed . | . . . . Triggered . | . . . . Machines | -11 -10 -10 -10 ---------- Run | Yrd Mat Min Sub Machines Disabled 2 | . . . 2 Max in Single Turn 1 | . . . 1 Machines Repaired . | . . . . Machines Dismantled . | . . . . Machines Sabotaged . | . . . . Overloaded Fab Kills . | . . . . Hacking | -11 -10 -10 -10 --------- Run | Yrd Mat Min Sub Machines Accessed 9 | . 5 . 4 Terminals 5 | . 5 . . Fabricators . | . . . . Repair Stations . | . . . . Recycling Units . | . . . . Scanalyzers . | . . . . Garrison Access . | . . . . Total Hacks 23 | . 16 . 7 Successful 15 | . 8 . 7 Failed 7 | . 7 . . Catastrophic . | . . . . Database Lockouts 1 | . 1 . . Manual 12 | . 12 . . Terminals 16 | . 16 . . Fabricators . | . . . . Repair Stations . | . . . . Recycling Units . | . . . . Scanalyzers . | . . . . Garrison Access . | . . . . Terminal Hacks 12 | . 5 . 7 Record 4 | . . . 4 Robot Analysis 2 | . 2 . . Prototype ID Bank 1 | . 1 . . Open Door 1 | . . . 1 Terminal Index 1 | . 1 . . Zone Layout 1 | . 1 . . Proto ID Catalog 1 | . . . 1 Release Object 1 | . . . 1 Fabricator Hacks . | . . . . Repair Station Hacks . | . . . . Recycling Unit Hacks . | . . . . Scanalyzer . | . . . . Garrison Access Hacks . | . . . . Unauthorized Hacks 3 | . 3 . . Terminals 3 | . 3 . . Botnet 3 | . 3 . . Fabricators . | . . . . Repair Stations . | . . . . Recycling Units . | . . . . Scanalyzers . | . . . . Garrison Access . | . . . . Data Cores Recovered . | . . . . Used . | . . . . Hacking Detections 5 | . 5 . . Full Trace Events . | . . . . Feedback Events . | . . . . Feedback Blocked . | . . . . Robot Schematics Acquired . | . . . . Robots Built . | . . . . Authchips . | . . . . Time . | . . . . Total Robot Build Rating . | . . . . Part Schematics Acquired . | . . . . Parts Built . | . . . . Authchips . | . . . . Time . | . . . . Total Part Build Rating . | . . . . Part Studies Acquired . | . . . . Parts Repaired . | . . . . Time . | . . . . Parts Recycled . | . . . . Recycled Matter . | . . . . Retrieved Matter . | . . . . Retrieved Components . | . . . . Parts Scanalyzed . | . . . . Part Schematics Acquired . | . . . . Parts Damaged . | . . . . Bothacking | -11 -10 -10 -10 ------------ Run | Yrd Mat Min Sub Used RIF Installer . | . . . . Robots Hacked . | . . . . Non-combat . | . . . . Combat . | . . . . Robot Hacks Applied . | . . . . Relay Couplers Released . | . . . . Fabnet Peak Effective % . | . . . . Robots Rewired . | . . . . Allies Hacked . | . . . . Hacks Repelled . | . . . . Allies | -11 -10 -10 -10 -------- Run | Yrd Mat Min Sub Total Allies . | . . . . Largest Group . | . . . . Highest-Rated Group . | . . . . Highest-Rated Ally . | . . . . Total Orders . | . . . . Ally Attacks . | . . . . Total Damage . | . . . . Kills . | . . . . Allies Corrupted . | . . . . Allies Melted . | . . . . Intel | -11 -10 -10 -10 ------- Run | Yrd Mat Min Sub Active Infowar (turns) . | . . . . Robot Analysis Total 2 | . 2 . . Derelict Logs Recovered . | . . . . Drone Launches . | . . . . Drone Recoveries . | . . . . Exploration | -11 -10 -10 -10 ------------- Run | Yrd Mat Min Sub Turns Passed 3373 | 87 612 138 2536 Spaces Moved 1740 | 49 275 63 1353 Core 2 | 2 . . . Treads 765 | 47 275 18 425 Legs 904 | . . 45 859 Wheels 69 | . . . 69 Hover . | . . . . Flight . | . . . . Fastest Speed 50 | 50 160 120 110 Average Speed 150 | 155 160 131 149 Slowest Speed 200 | 160 160 160 200 Overloaded Moves . | . . . . Propulsion Burnouts . | . . . . Robots Hopped . | . . . . Potential Cave-ins . | . . . . Cave-ins Triggered . | . . . . Exploration Rate (%) 37 | 4 69 9 67 Regions Visited 3 Branch Regions 2 Pre-discovered Areas 1 | . . . 1 Known Exits Taken . | . . . . Unknown Exits Taken 3 | 1 1 1 . Scrap Searched . | . . . . Spaces Dug . | . . . . Terrain Destroyed . | . . . . Melee . | . . . . Projectile . | . . . . AOE . | . . . . Terrain Rammed . | . . . . Walls Destroyed . | . . . . Machines Disabled . | . . . . Actions | -11 -10 -10 -10 --------- Run | Yrd Mat Min Sub Total 2276 | 57 394 93 1732 Wait 356 | . 67 5 284 Move 1737 | 48 274 62 1353 Hop . | . . . . Pick Up 20 | 1 10 3 6 Fast Attach 13 | 7 1 1 4 Attach 5 | . . 2 3 Detach 4 | 1 . 1 2 Swap 9 | . 3 2 4 Drop 17 | . 6 4 7 Fire 102 | . 26 13 63 Melee 6 | . . . 6 Ram . | . . . . Kick . | . . . . Crush 7 | . 7 . . Escape Stasis . | . . . . Rewire . | . . . . Trap . | . . . . Miscellaneous . | . . . . Route ------- -11/Scrapyard -10/Materials (discovered 4 exits: [*Mat x3] / [*Min]) -10/Mines -10/Subcaves (discovered 1 exit: [*Rec]) History --------- Turn | Location | Event 29 | -11/Scrapyard | Discovered new exit (range 16) 88 | -11/Scrapyard | Entered Materials 186 | -10/Materials | Discovered new exit (range 14) 310 | -10/Materials | Build established: Mutant 499 | -10/Materials | Central database locked down 610 | -10/Materials | Discovered new exit (range 6) 670 | -10/Materials | Discovered new exit (range 13) 678 | -10/Materials | Discovered new exit (range 12) 700 | -10/Materials | Entered Mines 787 | -10/Mines | Discovered new exit (range 8) 838 | -10/Mines | Entered Subcaves 839 | -10/Subcaves | Approached by a straggling Scientist 903 | -10/Subcaves | A swath of the cavern ceiling suddenly collapsed 969 | -10/Subcaves | Shifting Twisted Machinery released Spk. Treads 971 | -10/Subcaves | Shifting Twisted Machinery released Mak. Sword 1031 | -10/Subcaves | Build established: Scavenger-Mutant 1128 | -10/Subcaves | Discovered new exit (range 14) 1245 | -10/Subcaves | Ambushed by Subdwellers from Twisted Machinery 1311 | -10/Subcaves | Visited Clippyterm 1370 | -10/Subcaves | Ambushed by angry Subdweller bent on revenge 1455 | -10/Subcaves | Core integrity fell below 50% 1722 | -10/Subcaves | Visited 4L-MR0's lab 1733 | -10/Subcaves | Found Prototype Device 1733 | -10/Subcaves | Identified Sfc. Transmogrifier 1741 | -10/Subcaves | Found Cargo Legs 2025 | -10/Subcaves | Build established: Mutant 2089 | -10/Subcaves | Core integrity fell below 20% 3289 | -10/Subcaves | Learned location of Zion (-6) 3289 | -10/Subcaves | Met a Zionite searching for "candidates" 3374 | -10/Subcaves | Destroyed by Shrapnel Trap Last Messages --------------- 03208_ 4C-0F4(u) tweaks Twisted Machinery. 03218_ UO-BS1(R): "SUBHATE!" 03228_ B9 HJWUD0WZU WG ,%Z9,W|LL 03242_ UO-BS1(R) destroyed. 03255_ 4C-0F4(u) tweaks Twisted Machinery. 03266_ 4C-0F4(u) builds Twisted Machinery. 03269_ 4C-0F4(u) tweaks Twisted Machinery. 03289_ ZE-0M6(z): "Hey you! It's really dangerous down here, I feel that you could die at any moment. For your health and safety might I suggest a trip to Zion?" World map updated: -6/Zion. 03304_ System corrupted: Component data lost. 03353_ System corrupted: Substantial component data lost. 03363_ Sfc. Transmogrifier converts Imp. Deuterium Engine into Hyb. Deuterium Engine. 03374_ Triggered Shrapnel Trap. 03374_ An expanding cloud of shrapnel blasts out in all directions. Map ----- +----------------------------------------------------+ | ?????????????????????????????????????????????????? | | ?????????????????????????????????????????????????? | | ?????????????????????????????????????????????????? | | ?????????????????????????????????????????????????? | | ?????????????????????????????????????????????????? | | ?????????????????????????????????????????????????? | | ?????????????????????????????????????????????????? | | ?????????????????????????????????????????????????? | | ?????????????????????????????????????????????????? | | ?????????????????????????????????????????????????? | | ?????????????????????????????????????????????????? | | ???????????????????????????????????????####??????? | | ????????????????????????????????????? ## #?????? | | ?????????????????????????????????? ?? #???## | | ??????????????# ????????????????? #### | | ??????????????# ???????????????? ?? | | ??????????????? #???????#??????? ????# | | ???????????????? #????## ??????# ?????????# | | ?????????????????# #?### ???### ???? ?????# | | ???????????? ???# ## ???# #??? ?????# | | ???????????? ## ???# ### ????## | | ????????????# ???# ?????# | | ?????????????# #??## ??????# # | | ????????????## #?## #????????# ## | | ????????????# ### #?????????## ##? | | ?????????? @ #????###### ##? | | ?????????? ##??## #? | | ??????????# ## #### ### # | | ??????????? ???## #?##### | | ??????????? ??????## ##?????? | | ???????????? ?????????## ## ### ###??????? | | ???????????? ????????????###### ####?###????????? | | ???????????????????????????????###???????????????? | | ?????????????????????????????????????????????????? | | ?????????????????????????????????????????????????? | | ?????????????????????????????????????????????????? | | ?????????????????????????????????????????????????? | | ?????????????????????????????????????????????????? | | ?????????????????????????????????????????????????? | | ?????????????????????????????????????????????????? | | ?????????????????????????????????????????????????? | | ?????????????????????????????????????????????????? | | ?????????????????????????????????????????????????? | | ?????????????????????????????????????????????????? | | ?????????????????????????????????????????????????? | | ?????????????????????????????????????????????????? | | ?????????????????????????????????????????????????? | | | | | | | +----------------------------------------------------+ Best States ------------- Heat Dissipation 39 Energy Generation 16 Energy Capacity 800 Matter Stores 300 Matter Capacity 300 Sight Range 16 Terrain Scan Density 10 Evasion (%) 55 Recoil Reduction 2 Item Schematics ----------------- None Robot Schematics ------------------ None Fabricated ------------ Nothing Repaired ---------- Nothing Studied --------- None Alien Tech Used ----------------- None Achievements -------------- None Challenges ------------ None Game ------ Seed AngularIonRailgun Manual? 0 Play Time 00:24:07 Cumulative 227.2 hours Start 2026.08.08 @ 22:25:56 End 2026.08.09 @ 00:22:35 Sessions 2 Manual Loads 0 Difficulty Rogue Special Mode None Game No. 132 Rogue 132 Adventurer 0 Explorer 0 Win Type - Total 5 Types 5/0/0/0/0/0/0/0/0/0 Lore% 77 Gallery% 66 Achievement% 58 Wizard Run 0 Options --------- Layout 1 ASCII 0 Keyboard 0 Movement Numpad Keybinds 0 Fullscreen 1 Font 24/Smallcaps Map View 50x35 Zoom Use 0% Tactical HUD 1 Map Filters NONE Filters NONE Steam 1 RUN: 01674eae-f18e-4445-b84f-8f28eaad1af5